[Event "*** Titled Tuesday Blitz"]
[Site "Chess.com"]
[Date "2021.02.16"]
[Round "10"]
[White "WiktoriaPOL"]
[Black "Aya5ian"]
[Result "1-0"]
[WhiteElo "2044"]
[BlackElo "2240"]
[TimeControl "180+1"]
[EndTime "11:59:00 PST"]
[Termination "WiktoriaPOL won on time"]

1. e4 {[%clk 0:03:00.9]} 1... c6 {[%clk 0:02:59.6]} 2. Bc4 {[%clk 0:02:58.8]}
2... d5 {[%clk 0:03:00.5]} 3. Bb3 {[%clk 0:02:56.2]} 3... dxe4 {[%clk
0:03:00.3]} 4. Qh5 {[%clk 0:02:54.2]} 4... g6 {[%clk 0:02:56.6]} 5. Qe2 {[%clk
0:02:53.6]} 5... Nf6 {[%clk 0:02:53.4]} 6. Nc3 {[%clk 0:02:53]} 6... Bg4 {[%clk
0:02:53.1]} 7. Qe3 {[%clk 0:02:49.6]} 7... Bf5 {[%clk 0:02:48.4]} 8. Nge2 {[%clk
0:02:42.4]} 8... Nbd7 {[%clk 0:02:48.2]} 9. Ng3 {[%clk 0:02:41.4]} 9... Ng4
{[%clk 0:02:31.8]} 10. Qe2 {[%clk 0:02:37.4]} 10... Bh6 {[%clk 0:02:21.2]} 11.
Ncxe4 {[%clk 0:02:32]} 11... Bxe4 {[%clk 0:02:11.3]} 12. Nxe4 {[%clk 0:02:29.7]}
12... Ndf6 {[%clk 0:01:56.9]} 13. O-O {[%clk 0:02:15.8]} 13... Qd4 {[%clk
0:01:50.7]} 14. Nxf6+ {[%clk 0:02:13]} 14... Nxf6 {[%clk 0:01:51.6]} 15. c3
{[%clk 0:02:12.3]} 15... Qe4 {[%clk 0:01:46.2]} 16. Qxe4 {[%clk 0:02:09.2]}
16... Nxe4 {[%clk 0:01:47.1]} 17. d3 {[%clk 0:02:08.1]} 17... Bxc1 {[%clk
0:01:45.4]} 18. Raxc1 {[%clk 0:02:07.5]} 18... Nc5 {[%clk 0:01:30.3]} 19. Bc2
{[%clk 0:02:05.5]} 19... e6 {[%clk 0:01:30]} 20. d4 {[%clk 0:02:05.6]} 20... Nd7
{[%clk 0:01:28.6]} 21. Rcd1 {[%clk 0:02:02.2]} 21... O-O {[%clk 0:01:28.2]} 22.
Rfe1 {[%clk 0:02:01.7]} 22... Nf6 {[%clk 0:01:27.8]} 23. c4 {[%clk 0:02:01.7]}
23... Rad8 {[%clk 0:01:27]} 24. Bb3 {[%clk 0:02:00.7]} 24... Rd7 {[%clk
0:01:25.9]} 25. f3 {[%clk 0:01:57.5]} 25... Rfd8 {[%clk 0:01:25.8]} 26. d5
{[%clk 0:01:54.4]} 26... cxd5 {[%clk 0:01:23]} 27. cxd5 {[%clk 0:01:53.2]} 27...
exd5 {[%clk 0:01:20.7]} 28. Rd4 {[%clk 0:01:51.3]} 28... Kf8 {[%clk 0:01:02.4]}
29. Re5 {[%clk 0:01:48.6]} 29... Rd6 {[%clk 0:00:54.4]} 30. g4 {[%clk
0:01:45.7]} 30... h6 {[%clk 0:00:52.6]} 31. h4 {[%clk 0:01:41.8]} 31... b6
{[%clk 0:00:35.6]} 32. g5 {[%clk 0:01:40]} 32... hxg5 {[%clk 0:00:36.3]} 33.
hxg5 {[%clk 0:01:40]} 33... Nh5 {[%clk 0:00:32.7]} 34. Rexd5 {[%clk 0:01:37.2]}
34... Rxd5 {[%clk 0:00:33]} 35. Rxd5 {[%clk 0:01:35.5]} 35... Re8 {[%clk
0:00:27.5]} 36. Rd7 {[%clk 0:01:33.6]} 36... Re7 {[%clk 0:00:20.5]} 37. Rd8+
{[%clk 0:01:32.9]} 37... Kg7 {[%clk 0:00:20.3]} 38. Kg2 {[%clk 0:01:28]} 38...
Re2+ {[%clk 0:00:20]} 39. Kh3 {[%clk 0:01:28]} 39... Rxb2 {[%clk 0:00:20.9]} 40.
Rd7 {[%clk 0:01:27.8]} 40... Nf4+ {[%clk 0:00:16.4]} 41. Kg4 {[%clk 0:01:27.5]}
41... Ne2 {[%clk 0:00:11.6]} 42. Rxf7+ {[%clk 0:01:25]} 42... Kh8 {[%clk
0:00:11.3]} 43. Rxa7 {[%clk 0:01:20.3]} 43... Nd4 {[%clk 0:00:11.4]} 44. Bf7
{[%clk 0:01:10.8]} 44... b5 {[%clk 0:00:07.5]} 45. Bxg6 {[%clk 0:01:10]} 45...
Ne6 {[%clk 0:00:06]} 46. Bf5 {[%clk 0:01:06.4]} 46... Rg2+ {[%clk 0:00:02.8]}
47. Kh3 {[%clk 0:01:03.4]} 47... Nf4+ {[%clk 0:00:02.7]} 48. Kh4 {[%clk
0:01:02.4]} 1-0

[Event "*** Titled Tuesday Blitz"]
[Site "Chess.com"]
[Date "2021.02.16"]
[Round "10"]
[White "Cptn2"]
[Black "WilliamSchill"]
[Result "1/2-1/2"]
[WhiteElo "2315"]
[BlackElo "2050"]
[TimeControl "180+1"]
[EndTime "11:59:01 PST"]
[Termination "Game drawn by repetition"]

1. e4 {[%clk 0:02:57.8]} 1... c5 {[%clk 0:02:59]} 2. Nf3 {[%clk 0:02:58]} 2...
Nc6 {[%clk 0:02:59.1]} 3. d4 {[%clk 0:02:57.3]} 3... cxd4 {[%clk 0:02:59.2]} 4.
Nxd4 {[%clk 0:02:58.2]} 4... e5 {[%clk 0:02:59.4]} 5. Nb5 {[%clk 0:02:57.6]}
5... d6 {[%clk 0:02:59.2]} 6. N1c3 {[%clk 0:02:57.8]} 6... a6 {[%clk 0:02:59.2]}
7. Na3 {[%clk 0:02:56.5]} 7... Be7 {[%clk 0:02:59.5]} 8. Nd5 {[%clk 0:02:55.4]}
8... Nf6 {[%clk 0:02:57.7]} 9. Nxf6+ {[%clk 0:02:35.4]} 9... Bxf6 {[%clk
0:02:51]} 10. Nc4 {[%clk 0:02:36.3]} 10... Be7 {[%clk 0:02:50.2]} 11. a4 {[%clk
0:02:33.4]} 11... Be6 {[%clk 0:02:35.7]} 12. Be3 {[%clk 0:02:32.2]} 12... Rc8
{[%clk 0:02:21.3]} 13. Nb6 {[%clk 0:02:28.8]} 13... Rc7 {[%clk 0:02:20.2]} 14.
c3 {[%clk 0:02:27.6]} 14... O-O {[%clk 0:02:12.7]} 15. Be2 {[%clk 0:02:22.6]}
15... Na5 {[%clk 0:01:48]} 16. Nd5 {[%clk 0:02:00.4]} 16... Rc6 {[%clk
0:01:16.9]} 17. b4 {[%clk 0:01:56.1]} 17... Nc4 {[%clk 0:01:16.5]} 18. Bxc4
{[%clk 0:01:51.5]} 18... Rxc4 {[%clk 0:01:16.7]} 19. Qd3 {[%clk 0:01:49.3]}
19... Bxd5 {[%clk 0:01:14.5]} 20. exd5 {[%clk 0:01:49.3]} 20... Qc7 {[%clk
0:01:08.3]} 21. Bd2 {[%clk 0:01:44.4]} 21... e4 {[%clk 0:01:06.3]} 22. Qg3
{[%clk 0:01:39.7]} 22... Bf6 {[%clk 0:01:02.7]} 23. Rc1 {[%clk 0:01:38.5]} 23...
Rc8 {[%clk 0:01:01.5]} 24. O-O {[%clk 0:01:34.4]} 24... Bxc3 {[%clk 0:01:01.2]}
25. Bxc3 {[%clk 0:01:34.4]} 25... Rxc3 {[%clk 0:01:01.3]} 26. Rxc3 {[%clk
0:01:35.1]} 26... Qxc3 {[%clk 0:01:01.1]} 27. Qxd6 {[%clk 0:01:35.7]} 27... Qc7
{[%clk 0:00:55.7]} 28. Qxc7 {[%clk 0:01:22.9]} 28... Rxc7 {[%clk 0:00:55.8]} 29.
Rd1 {[%clk 0:01:22]} 29... Kf8 {[%clk 0:00:53]} 30. g4 {[%clk 0:01:15.9]} 30...
Rc4 {[%clk 0:00:51.6]} 31. b5 {[%clk 0:00:53.4]} 31... Rxa4 {[%clk 0:00:47.8]}
32. bxa6 {[%clk 0:00:53.4]} 32... bxa6 {[%clk 0:00:47.7]} 33. Rc1 {[%clk
0:00:52.5]} 33... Rd4 {[%clk 0:00:42.5]} 34. Rc5 {[%clk 0:00:52.4]} 34... Ke7
{[%clk 0:00:42.1]} 35. Ra5 {[%clk 0:00:51.2]} 35... Kd6 {[%clk 0:00:36.3]} 36.
Kg2 {[%clk 0:00:45.6]} 36... Rxd5 {[%clk 0:00:31.8]} 37. Rxa6+ {[%clk
0:00:46.5]} 37... Ke7 {[%clk 0:00:31.6]} 38. Kg3 {[%clk 0:00:46.7]} 38... Rd6
{[%clk 0:00:26.3]} 39. Ra7+ {[%clk 0:00:43.9]} 39... Rd7 {[%clk 0:00:26.1]} 40.
Rxd7+ {[%clk 0:00:43.2]} 40... Kxd7 {[%clk 0:00:26.3]} 41. Kf4 {[%clk
0:00:44.1]} 41... Ke6 {[%clk 0:00:25.2]} 42. Kxe4 {[%clk 0:00:44.7]} 42... f6
{[%clk 0:00:23.5]} 43. f4 {[%clk 0:00:44.5]} 43... g6 {[%clk 0:00:20.7]} 44. h4
{[%clk 0:00:44.2]} 44... f5+ {[%clk 0:00:16.8]} 45. gxf5+ {[%clk 0:00:43.4]}
45... gxf5+ {[%clk 0:00:17.1]} 46. Kd4 {[%clk 0:00:43.3]} 46... Kd6 {[%clk
0:00:17.3]} 47. Kc4 {[%clk 0:00:43.9]} 47... Kc6 {[%clk 0:00:17.3]} 48. Kd4
{[%clk 0:00:44.5]} 48... Kd6 {[%clk 0:00:17.5]} 49. Kc4 {[%clk 0:00:45]} 49...
Kc6 {[%clk 0:00:17.7]} 50. Kd4 {[%clk 0:00:45.6]} 50... Kd6 {[%clk 0:00:17.9]}
1/2-1/2

[Event "*** Titled Tuesday Blitz"]
[Site "Chess.com"]
[Date "2021.02.16"]
[Round "10"]
[White "MartinMatthiesen"]
[Black "bazar-wokzal"]
[Result "0-1"]
[WhiteElo "2366"]
[BlackElo "2552"]
[TimeControl "180+1"]
[EndTime "11:59:02 PST"]
[Termination "bazar-wokzal won by checkmate"]

1. d4 {[%clk 0:03:00.9]} 1... Nf6 {[%clk 0:02:59.5]} 2. c4 {[%clk 0:02:55.8]}
2... Nc6 {[%clk 0:02:59.4]} 3. Nf3 {[%clk 0:02:53.5]} 3... e6 {[%clk 0:02:59.5]}
4. a3 {[%clk 0:02:52.6]} 4... g6 {[%clk 0:02:59.4]} 5. Nc3 {[%clk 0:02:28.9]}
5... Bg7 {[%clk 0:02:59.5]} 6. e4 {[%clk 0:02:28.6]} 6... d5 {[%clk 0:02:59.7]}
7. e5 {[%clk 0:02:10.3]} 7... Ne4 {[%clk 0:02:58.1]} 8. Bd3 {[%clk 0:02:06.4]}
8... Nxc3 {[%clk 0:02:57.3]} 9. bxc3 {[%clk 0:02:06]} 9... dxc4 {[%clk
0:02:58.2]} 10. Bxc4 {[%clk 0:02:05.9]} 10... Na5 {[%clk 0:02:58.9]} 11. Bd3
{[%clk 0:02:02]} 11... c5 {[%clk 0:02:58.6]} 12. h4 {[%clk 0:02:00.8]} 12... h6
{[%clk 0:02:51.5]} 13. Bf4 {[%clk 0:01:30.3]} 13... Bd7 {[%clk 0:02:50.4]} 14.
Nd2 {[%clk 0:01:20.9]} 14... Bc6 {[%clk 0:01:49.2]} 15. Ne4 {[%clk 0:01:17.5]}
15... Bxe4 {[%clk 0:01:48.8]} 16. Bxe4 {[%clk 0:01:17]} 16... Qc7 {[%clk
0:01:48.8]} 17. Qa4+ {[%clk 0:00:21.2]} 17... Kf8 {[%clk 0:01:45.6]} 18. O-O
{[%clk 0:00:17.9]} 18... Rd8 {[%clk 0:01:19.1]} 19. Rfd1 {[%clk 0:00:17.3]}
19... b6 {[%clk 0:01:10.1]} 20. Rd2 {[%clk 0:00:16.2]} 20... f5 {[%clk
0:01:02.4]} 21. exf6 {[%clk 0:00:13.5]} 21... Qxf4 {[%clk 0:01:02.5]} 22. fxg7+
{[%clk 0:00:13.4]} 22... Kxg7 {[%clk 0:01:03.4]} 23. Re2 {[%clk 0:00:13.8]}
23... Qxh4 {[%clk 0:01:00.7]} 24. Rae1 {[%clk 0:00:12.1]} 24... Rhf8 {[%clk
0:01:00.1]} 25. Bb1 {[%clk 0:00:09.4]} 25... cxd4 {[%clk 0:00:56.8]} 26. cxd4
{[%clk 0:00:09.2]} 26... Qxd4 {[%clk 0:00:55.3]} 27. Qc2 {[%clk 0:00:09.2]}
27... Rf6 {[%clk 0:00:53.4]} 28. Rxe6 {[%clk 0:00:08.5]} 28... Rdf8 {[%clk
0:00:46.2]} 29. Re7+ {[%clk 0:00:06.3]} 29... Kh8 {[%clk 0:00:40.9]} 30. Rf1
{[%clk 0:00:04.2]} 30... Nc4 {[%clk 0:00:36.8]} 31. Rxa7 {[%clk 0:00:03.4]}
31... Ne3 {[%clk 0:00:31]} 32. Qc1 {[%clk 0:00:03.9]} 32... Ng4 {[%clk
0:00:22.6]} 33. Rd1 {[%clk 0:00:04.1]} 33... Qxf2+ {[%clk 0:00:21.9]} 34. Kh1
{[%clk 0:00:04.6]} 34... Qh4+ {[%clk 0:00:22]} 35. Kg1 {[%clk 0:00:04.6]} 35...
Qh2# {[%clk 0:00:22.7]} 0-1

[Event "*** Titled Tuesday Blitz"]
[Site "Chess.com"]
[Date "2021.02.16"]
[Round "10"]
[White "MPGM"]
[Black "Oglob71"]
[Result "1-0"]
[WhiteElo "2611"]
[BlackElo "2435"]
[TimeControl "180+1"]
[EndTime "11:59:03 PST"]
[Termination "MPGM won by checkmate"]

1. c4 {[%clk 0:03:00.9]} 1... Nf6 {[%clk 0:02:59.1]} 2. Nc3 {[%clk 0:03:00.4]}
2... c6 {[%clk 0:02:56.3]} 3. e4 {[%clk 0:02:55.7]} 3... e5 {[%clk 0:02:56.2]}
4. Nf3 {[%clk 0:02:51.3]} 4... d6 {[%clk 0:02:56.5]} 5. d4 {[%clk 0:02:49.4]}
5... Nbd7 {[%clk 0:02:56.9]} 6. Be2 {[%clk 0:02:47.6]} 6... Be7 {[%clk
0:02:57.2]} 7. O-O {[%clk 0:02:47.3]} 7... O-O {[%clk 0:02:57.6]} 8. h3 {[%clk
0:02:44]} 8... Re8 {[%clk 0:02:57.7]} 9. d5 {[%clk 0:02:39.9]} 9... Bf8 {[%clk
0:02:55.9]} 10. Re1 {[%clk 0:02:37.3]} 10... g6 {[%clk 0:02:54.9]} 11. Be3
{[%clk 0:02:31.2]} 11... Nc5 {[%clk 0:02:49.4]} 12. Nd2 {[%clk 0:02:30.7]} 12...
a5 {[%clk 0:02:49.4]} 13. a3 {[%clk 0:02:16.7]} 13... cxd5 {[%clk 0:02:44.6]}
14. cxd5 {[%clk 0:02:13.5]} 14... Bd7 {[%clk 0:02:44.2]} 15. b4 {[%clk
0:02:10.9]} 15... Na6 {[%clk 0:02:38.9]} 16. Rb1 {[%clk 0:01:56.2]} 16... axb4
{[%clk 0:02:38.7]} 17. axb4 {[%clk 0:01:55.9]} 17... Qe7 {[%clk 0:02:27.1]} 18.
Nc4 {[%clk 0:01:50.9]} 18... Rac8 {[%clk 0:02:17]} 19. Qb3 {[%clk 0:01:47.1]}
19... b5 {[%clk 0:02:12.1]} 20. Nb6 {[%clk 0:01:46.4]} 20... Rxc3 {[%clk
0:02:12.4]} 21. Qxc3 {[%clk 0:01:44.3]} 21... Nxe4 {[%clk 0:02:12.8]} 22. Qd3
{[%clk 0:01:37.5]} 22... Bf5 {[%clk 0:02:12.3]} 23. Qxb5 {[%clk 0:01:37.5]}
23... Nc7 {[%clk 0:02:10.6]} 24. Qc6 {[%clk 0:01:31.3]} 24... Rb8 {[%clk
0:02:03.2]} 25. Rbc1 {[%clk 0:01:21.6]} 25... Ne8 {[%clk 0:02:01.3]} 26. b5
{[%clk 0:01:08.5]} 26... Nc5 {[%clk 0:01:49.7]} 27. Ra1 {[%clk 0:00:49.6]} 27...
Nf6 {[%clk 0:01:42.5]} 28. Ra8 {[%clk 0:00:45.6]} 28... Rxb6 {[%clk 0:01:39.9]}
29. Qxb6 {[%clk 0:00:44.1]} 29... Nxd5 {[%clk 0:01:40.3]} 30. Qd8 {[%clk
0:00:37.9]} 30... Qxd8 {[%clk 0:01:33.7]} 31. Rxd8 {[%clk 0:00:38.8]} 31... Nxe3
{[%clk 0:01:33.7]} 32. fxe3 {[%clk 0:00:39]} 32... Kg7 {[%clk 0:01:33.4]} 33. b6
{[%clk 0:00:26.3]} 33... Be7 {[%clk 0:01:33.2]} 34. Re8 {[%clk 0:00:23.1]} 34...
Bg5 {[%clk 0:01:31.3]} 35. Bf3 {[%clk 0:00:21.7]} 35... e4 {[%clk 0:01:31.5]}
36. Bg4 {[%clk 0:00:21.1]} 36... Be6 {[%clk 0:01:17.3]} 37. Bxe6 {[%clk
0:00:20.5]} 37... fxe6 {[%clk 0:01:17.9]} 38. Rc8 {[%clk 0:00:16.3]} 38... Nd3
{[%clk 0:01:11.6]} 39. Re2 {[%clk 0:00:16.6]} 39... d5 {[%clk 0:01:05.2]} 40. b7
{[%clk 0:00:16]} 40... Bh4 {[%clk 0:01:02.7]} 41. b8=Q {[%clk 0:00:15.3]} 41...
Kh6 {[%clk 0:01:03.2]} 42. Rh8 {[%clk 0:00:13.1]} 42... Bf6 {[%clk 0:01:02.6]}
43. Qf8+ {[%clk 0:00:12.3]} 43... Bg7 {[%clk 0:01:02.6]} 44. Qg8 {[%clk
0:00:11]} 44... Bxh8 {[%clk 0:01:00.1]} 45. Qxh8 {[%clk 0:00:11.9]} 45... e5
{[%clk 0:00:58.8]} 46. Qf6 {[%clk 0:00:11.5]} 46... Kh5 {[%clk 0:00:53.3]} 47.
g4+ {[%clk 0:00:11.2]} 47... Kh6 {[%clk 0:00:53.2]} 48. h4 {[%clk 0:00:10.1]}
48... Nc1 {[%clk 0:00:49.6]} 49. Qf8# {[%clk 0:00:09.9]} 1-0

[Event "*** Titled Tuesday Blitz"]
[Site "Chess.com"]
[Date "2021.02.16"]
[Round "10"]
[White "Walter_White_Poland"]
[Black "Nachsueb"]
[Result "1-0"]
[WhiteElo "2354"]
[BlackElo "2181"]
[TimeControl "180+1"]
[EndTime "11:59:03 PST"]
[Termination "Walter_White_Poland won by resignation"]

1. e4 {[%clk 0:03:00.9]} 1... c5 {[%clk 0:02:59.9]} 2. Nf3 {[%clk 0:03:00.7]}
2... e6 {[%clk 0:03:00.5]} 3. d4 {[%clk 0:03:00.8]} 3... cxd4 {[%clk 0:03:01.4]}
4. Nxd4 {[%clk 0:03:01.4]} 4... Nc6 {[%clk 0:03:02]} 5. Nc3 {[%clk 0:03:01.1]}
5... a6 {[%clk 0:03:02.1]} 6. Nxc6 {[%clk 0:02:58.4]} 6... bxc6 {[%clk 0:03:03]}
7. Bd3 {[%clk 0:02:58.6]} 7... Nf6 {[%clk 0:02:58.7]} 8. e5 {[%clk 0:02:55.1]}
8... Nd5 {[%clk 0:02:53.8]} 9. Ne4 {[%clk 0:02:54.9]} 9... Be7 {[%clk
0:02:53.2]} 10. Qg4 {[%clk 0:02:37.2]} 10... Kf8 {[%clk 0:02:39]} 11. O-O {[%clk
0:02:33.7]} 11... f5 {[%clk 0:02:29.6]} 12. exf6 {[%clk 0:02:33]} 12... Nxf6
{[%clk 0:02:29.4]} 13. Nxf6 {[%clk 0:02:30.4]} 13... Bxf6 {[%clk 0:02:30.3]} 14.
Be3 {[%clk 0:01:56.4]} 14... d6 {[%clk 0:02:21.8]} 15. Rad1 {[%clk 0:01:37.7]}
15... e5 {[%clk 0:02:16.4]} 16. Qf3 {[%clk 0:01:28.4]} 16... d5 {[%clk
0:01:53.9]} 17. Bc5+ {[%clk 0:01:27.6]} 17... Kf7 {[%clk 0:01:53.7]} 18. c4
{[%clk 0:01:20.7]} 18... Be6 {[%clk 0:01:40.9]} 19. Bf5 {[%clk 0:01:19]} 19...
Bxf5 {[%clk 0:01:32.7]} 20. Qxf5 {[%clk 0:01:19.9]} 20... Qc8 {[%clk 0:01:26.7]}
21. Qxc8 {[%clk 0:01:05.2]} 21... Rhxc8 {[%clk 0:01:27.5]} 22. cxd5 {[%clk
0:01:05.9]} 22... cxd5 {[%clk 0:01:27.9]} 23. Rxd5 {[%clk 0:01:06.6]} 23... Ke6
{[%clk 0:01:28.4]} 24. Rfd1 {[%clk 0:01:05.9]} 24... Rab8 {[%clk 0:01:25.8]} 25.
b4 {[%clk 0:01:01.5]} 25... Rd8 {[%clk 0:01:18.8]} 26. Rxd8 {[%clk 0:00:54.3]}
26... Rxd8 {[%clk 0:01:19.7]} 27. Rxd8 {[%clk 0:00:53.9]} 27... Bxd8 {[%clk
0:01:20.6]} 28. f3 {[%clk 0:00:53.3]} 28... Kd5 {[%clk 0:01:20.9]} 29. Kf2
{[%clk 0:00:51.6]} 29... a5 {[%clk 0:01:21.3]} 30. Bf8 {[%clk 0:00:44.2]} 30...
g6 {[%clk 0:01:15.6]} 31. bxa5 {[%clk 0:00:43.9]} 31... Bxa5 {[%clk 0:01:16.4]}
32. Ke3 {[%clk 0:00:40]} 32... h5 {[%clk 0:01:12.7]} 33. Kd3 {[%clk 0:00:37.8]}
33... g5 {[%clk 0:01:02.2]} 34. h3 {[%clk 0:00:35.4]} 34... Bd8 {[%clk
0:00:51.3]} 35. a4 {[%clk 0:00:35.2]} 35... g4 {[%clk 0:00:47.9]} 36. hxg4
{[%clk 0:00:33.6]} 36... hxg4 {[%clk 0:00:48.8]} 37. fxg4 {[%clk 0:00:33.8]}
37... e4+ {[%clk 0:00:48.6]} 38. Ke2 {[%clk 0:00:33.7]} 38... Ke5 {[%clk
0:00:45.2]} 39. Bh6 {[%clk 0:00:30.8]} 39... Ba5 {[%clk 0:00:43.2]} 40. Bd2
{[%clk 0:00:29.8]} 40... Bb6 {[%clk 0:00:42.2]} 41. a5 {[%clk 0:00:29.9]} 41...
Bc5 {[%clk 0:00:35.3]} 42. a6 {[%clk 0:00:29.5]} 42... Kd6 {[%clk 0:00:29.6]}
43. Be3 {[%clk 0:00:29]} 1-0

[Event "*** Titled Tuesday Blitz"]
[Site "Chess.com"]
[Date "2021.02.16"]
[Round "10"]
[White "AryanTari"]
[Black "IMRosen"]
[Result "1-0"]
[WhiteElo "2895"]
[BlackElo "2630"]
[TimeControl "180+1"]
[EndTime "11:59:06 PST"]
[Termination "AryanTari won by resignation"]

1. Nf3 {[%clk 0:03:00.9]} 1... d5 {[%clk 0:02:59.8]} 2. b3 {[%clk 0:03:00.5]}
2... Bg4 {[%clk 0:02:58.3]} 3. Bb2 {[%clk 0:03:00.7]} 3... Nc6 {[%clk
0:02:50.8]} 4. e3 {[%clk 0:02:53]} 4... e5 {[%clk 0:02:42.8]} 5. h3 {[%clk
0:02:48.3]} 5... Bxf3 {[%clk 0:02:28.9]} 6. Qxf3 {[%clk 0:02:49.2]} 6... Nf6
{[%clk 0:02:25.1]} 7. Bb5 {[%clk 0:02:46.2]} 7... Bd6 {[%clk 0:02:24.4]} 8. Nc3
{[%clk 0:02:40.6]} 8... a6 {[%clk 0:02:23.7]} 9. Bxc6+ {[%clk 0:02:36.7]} 9...
bxc6 {[%clk 0:02:24.6]} 10. e4 {[%clk 0:02:36.8]} 10... d4 {[%clk 0:02:02.9]}
11. Ne2 {[%clk 0:02:35.8]} 11... O-O {[%clk 0:02:01.6]} 12. O-O {[%clk
0:02:33.2]} 12... g6 {[%clk 0:01:52.7]} 13. d3 {[%clk 0:02:08.4]} 13... Nh5
{[%clk 0:01:51.2]} 14. g4 {[%clk 0:02:03.4]} 14... Ng7 {[%clk 0:01:50]} 15. Ng3
{[%clk 0:02:03.5]} 15... Qh4 {[%clk 0:01:49.4]} 16. Kh2 {[%clk 0:01:54.7]} 16...
Ne6 {[%clk 0:01:49.6]} 17. Bc1 {[%clk 0:01:54.8]} 17... a5 {[%clk 0:01:48.4]}
18. a4 {[%clk 0:01:54.6]} 18... Be7 {[%clk 0:01:47]} 19. Rg1 {[%clk 0:01:52.5]}
19... Bg5 {[%clk 0:01:45.2]} 20. Nf5 {[%clk 0:01:32.2]} 20... gxf5 {[%clk
0:01:25.2]} 21. gxf5 {[%clk 0:01:33.1]} 21... Nf4 {[%clk 0:01:23.9]} 22. Bxf4
{[%clk 0:01:27.6]} 22... exf4 {[%clk 0:01:17.2]} 23. Rxg5+ {[%clk 0:01:18.4]}
23... Qxg5 {[%clk 0:01:18.1]} 24. Rg1 {[%clk 0:01:18.7]} 24... f6 {[%clk
0:01:14.8]} 25. Qxf4 {[%clk 0:01:18.5]} 25... Qxg1+ {[%clk 0:01:11.4]} 26. Kxg1
{[%clk 0:01:19.4]} 26... Rf7 {[%clk 0:01:11.8]} 27. Kf1 {[%clk 0:01:17]} 27...
Re8 {[%clk 0:01:09.5]} 28. Ke2 {[%clk 0:01:13.6]} 28... Rg7 {[%clk 0:01:08.3]}
29. Qh4 {[%clk 0:01:10.4]} 29... Rg5 {[%clk 0:00:59.5]} 30. f4 {[%clk
0:00:57.7]} 30... Rg2+ {[%clk 0:00:40.3]} 31. Kf3 {[%clk 0:00:57.6]} 31... Rxc2
{[%clk 0:00:29.9]} 32. Qxf6 {[%clk 0:00:56.4]} 32... c5 {[%clk 0:00:30.4]} 33.
Qg5+ {[%clk 0:00:49.8]} 33... Kf7 {[%clk 0:00:25.8]} 34. f6 {[%clk 0:00:45.6]}
34... Rc3 {[%clk 0:00:13.9]} 35. e5 {[%clk 0:00:35.5]} 35... Rxd3+ {[%clk
0:00:13.2]} 36. Ke4 {[%clk 0:00:36.1]} 36... Re3+ {[%clk 0:00:11.5]} 37. Kf5
{[%clk 0:00:36.7]} 37... Rg8 {[%clk 0:00:11.5]} 38. Qh5+ {[%clk 0:00:36.8]}
38... Kf8 {[%clk 0:00:11.3]} 39. Ke6 {[%clk 0:00:36.6]} 39... Rg7 {[%clk
0:00:07.3]} 40. fxg7+ {[%clk 0:00:36]} 40... Kxg7 {[%clk 0:00:08.2]} 41. f5
{[%clk 0:00:34.9]} 41... Rg3 {[%clk 0:00:03.6]} 42. f6+ {[%clk 0:00:34.2]} 42...
Kh8 {[%clk 0:00:03.9]} 43. Qe8+ {[%clk 0:00:33.7]} 43... Rg8 {[%clk 0:00:04.5]}
44. f7 {[%clk 0:00:33.8]} 1-0

[Event "*** Titled Tuesday Blitz"]
[Site "Chess.com"]
[Date "2021.02.16"]
[Round "10"]
[White "akhairat"]
[Black "bylavochka"]
[Result "0-1"]
[WhiteElo "2324"]
[BlackElo "2113"]
[TimeControl "180+1"]
[EndTime "11:59:06 PST"]
[Termination "bylavochka won by checkmate"]

1. e4 {[%clk 0:03:00]} 1... e5 {[%clk 0:03:00.1]} 2. f4 {[%clk 0:02:56.4]} 2...
exf4 {[%clk 0:02:58.9]} 3. Nf3 {[%clk 0:02:55.7]} 3... Ne7 {[%clk 0:02:57.9]} 4.
Bc4 {[%clk 0:02:54.7]} 4... d5 {[%clk 0:02:56.5]} 5. exd5 {[%clk 0:02:55.6]}
5... Nxd5 {[%clk 0:02:56.7]} 6. O-O {[%clk 0:02:54.5]} 6... Be6 {[%clk
0:02:53.9]} 7. Qe2 {[%clk 0:02:51.8]} 7... Be7 {[%clk 0:02:52.2]} 8. d4 {[%clk
0:02:44.8]} 8... O-O {[%clk 0:02:49.2]} 9. Bd3 {[%clk 0:02:40.6]} 9... Nd7
{[%clk 0:02:38.8]} 10. Nc3 {[%clk 0:02:34.9]} 10... Nxc3 {[%clk 0:02:30]} 11.
bxc3 {[%clk 0:02:34.1]} 11... Bd6 {[%clk 0:02:25.2]} 12. a4 {[%clk 0:02:29]}
12... Nf6 {[%clk 0:02:18.3]} 13. Ne5 {[%clk 0:02:22.9]} 13... c5 {[%clk
0:01:37.2]} 14. Bxf4 {[%clk 0:02:18.4]} 14... cxd4 {[%clk 0:01:37.3]} 15. cxd4
{[%clk 0:02:14.5]} 15... Bb4 {[%clk 0:01:32.1]} 16. Bg5 {[%clk 0:01:32.4]} 16...
Qxd4+ {[%clk 0:01:30.8]} 17. Kh1 {[%clk 0:01:31.6]} 17... Ng4 {[%clk 0:00:47.8]}
18. Nf3 {[%clk 0:00:57.9]} 18... Qd6 {[%clk 0:00:18.5]} 19. h3 {[%clk
0:00:54.4]} 19... Nf6 {[%clk 0:00:16.7]} 20. Ne5 {[%clk 0:00:47.3]} 20... Nd7
{[%clk 0:00:10.5]} 21. Nxd7 {[%clk 0:00:42.8]} 21... Bxd7 {[%clk 0:00:10.6]} 22.
Qe4 {[%clk 0:00:30.6]} 22... g6 {[%clk 0:00:09.9]} 23. Bf6 {[%clk 0:00:19.5]}
23... Bc6 {[%clk 0:00:05.6]} 24. Qh4 {[%clk 0:00:19.5]} 24... Bd2 {[%clk
0:00:04.3]} 25. Rad1 {[%clk 0:00:14.5]} 25... Qd5 {[%clk 0:00:03.7]} 26. Rxd2
{[%clk 0:00:12]} 26... h5 {[%clk 0:00:03.8]} 27. Rdf2 {[%clk 0:00:09]} 27...
Rae8 {[%clk 0:00:02.9]} 28. Rf5 {[%clk 0:00:07.6]} 28... Qxg2# {[%clk
0:00:02.2]} 0-1